Workbook

Sheet Sheet1
A1: Fitting Functions to Data | G1: x | H1: y | I1: log(x) | J1: log(y)
G2: 1 | H2: 2 | I2: =LOG(G2) -> 0 | J2: 0.3010299957
A3: This DIGMath module demonstrates the process | G3: 2 | H3: 5 | I3: 0.3010299957 | J3: 0.6989700043
A4: of fitting linear, exponential and power functions | G4: 3 | H4: 8 | I4: 0.4771212547 | J4: 0.903089987
C5: to a set of data | G5: 4 | H5: 14 | I5: 0.6020599913 | J5: 1.146128036
G6: 5 | H6: 21 | I6: 0.6989700043 | J6: 1.322219295 | Q6: Correlation coefficient
G7: 6 | H7: 29 | I7: =IF(G7="","",LOG(G7)) -> 0.7781512504 | J7: =IF(H7="","",LOG(H7)) -> 1.462397998 | Q7: r = | R7: =CORREL(G2:G31,H2:H31) -> 0.9482963943
A8: How many data points, n, between 2 and 50? | G8: 7 | H8: 39 | I8: 0.84509804 | J8: 1.591064607
B9: n = | C9: =E9 -> 0 | G9: 8 | H9: 52 | I9: 0.903089987 | J9: 1.716003344
G10: 9 | H10: 67 | I10: 0.9542425094 | J10: 1.826074803 | Q10: Sum of the Squares
G11: 10 | H11: 88 | I11: 1 | J11: 1.944482672 | Q11: = | R11: =Sheet2!K32 -> 12245.31324
G12: 11 | H12: 107 | I12: 1.041392685 | J12: 2.029383778
G13: 12 | H13: 133 | I13: 1.079181246 | J13: 2.123851641
G14: 13 | H14: 177 | I14: 1.113943352 | J14: 2.247973266
G15: 14 | H15: 218 | I15: 1.146128036 | J15: 2.338456494
G16: 15 | H16: 245 | I16: 1.176091259 | J16: 2.389166084
G17: 16 | H17: 266 | I17: =IF(G17="","",LOG(G17)) -> 1.204119983 | J17: 2.424881637
Q21: Correlation coefficient
Q22: r = | R22: =CORREL(G2:G31,J2:J31) -> 0.9747722806
Q38: Sum of the Squares
Q39: = | R39: =Sheet2!O32 -> 35330.94553
G41: Created by: Sheldon P. Gordon
G42: Farmingdale StateCollege
G43: Development of this module was supported by the
G44: NSF's Division of Undergraduate Education
G45: under grants DUE-0310123 and DUE-0442160.
Q50: Correlation coefficient
Q51: r = | R51: =CORREL(I2:I31,J2:J31) -> 0.9905723558
Q67: Sum of the Squares
Q68: = | R68: =Sheet2!S32 -> 7906.207892

Sheet Sheet2
A1: x | B1: y | C1: log(x) | D1: log(y) | I1: Linear | J1: y-y | K1: (y-y)^2 | L1: Expo | M1: y calc | N1: y-y | O1: (y-y)^2 | P1: Power | Q1: y calc | R1: y - y | S1: (y - y)^2
A2: =Sheet1!G2 -> 1 | B2: =Sheet1!H2 -> 2 | C2: =LOG(A2) -> 0 | D2: 0.3010299957 | F2: Linear | J2: =($F$3*A2+$H$3)-B2 -> -44.54411765 | K2: =J2^2 -> 1984.178417 | M2: =$F$10*$H$10^A2 -> 4.685674756 | N2: =M2-B2 -> 2.685674756 | O2: =N2^2 -> 7.212848895 | Q2: =$F$17*A2^$H$17 -> 1.29787702 | R2: =Q2-B2 -> -0.70212298 | S2: =R2^2 -> 0.4929766791
A3: =Sheet1!G3 -> 2 | B3: =Sheet1!H3 -> 5 | C3: 0.3010299957 | D3: 0.6989700043 | E3: a= | F3: =SLOPE(B2:B31,A2:A31) -> 17.93088235 | G3: b= | H3: =INTERCEPT(B2:B31,A2:A31) -> -60.475 | J3: =($F$3*A3+$H$3)-B3 -> -29.61323529 | K3: =J3^2 -> 876.9437046 | M3: =$F$10*$H$10^A3 -> 6.336930853 | N3: =M3-B3 -> 1.336930853 | O3: =N3^2 -> 1.787384105 | Q3: =$F$17*A3^$H$17 -> 4.681355176 | R3: =Q3-B3 -> -0.3186448236 | S3: =R3^2 -> 0.1015345236
A4: =Sheet1!G4 -> 3 | B4: =Sheet1!H4 -> 8 | C4: 0.4771212547 | D4: 0.903089987 | J4: =($F$3*A4+$H$3)-B4 -> -14.68235294 | K4: =J4^2 -> 215.5714879 | M4: =$F$10*$H$10^A4 -> 8.570098166 | N4: =M4-B4 -> 0.5700981662 | O4: =N4^2 -> 0.3250119191 | Q4: =$F$17*A4^$H$17 -> 9.914628804 | R4: =Q4-B4 -> 1.914628804 | S4: =R4^2 -> 3.665803456
A5: =Sheet1!G5 -> 4 | B5: =Sheet1!H5 -> 14 | C5: 0.6020599913 | D5: 1.146128036 | J5: =($F$3*A5+$H$3)-B5 -> -2.751470588 | K5: =J5^2 -> 7.570590398 | M5: =$F$10*$H$10^A5 -> 11.59024523 | N5: =M5-B5 -> -2.409754772 | O5: =N5^2 -> 5.80691806 | Q5: =$F$17*A5^$H$17 -> 16.88533347 | R5: =Q5-B5 -> 2.885333472 | S5: =R5^2 -> 8.325149244
A6: =Sheet1!G6 -> 5 | B6: =Sheet1!H6 -> 21 | C6: 0.6989700043 | D6: 1.322219295 | J6: =IF(A6="","",($F$3*A6+$H$3)-B6) -> 8.179411765 | K6: =IF(A6="","",J6^2) -> 66.90277682 | M6: =$F$10*$H$10^A6 -> 15.67470779 | N6: =M6-B6 -> -5.325292214 | O6: =N6^2 -> 28.35873717 | Q6: =$F$17*A6^$H$17 -> 25.51925743 | R6: =Q6-B6 -> 4.519257427 | S6: =R6^2 -> 20.42368769
A7: =IF(Sheet1!G7="","",Sheet1!G7) -> 6 | B7: =IF(Sheet1!H7="","",Sheet1!H7) -> 29 | C7: =IF(Sheet1!G7="","",LOG(A7)) -> 0.7781512504 | D7: =IF(Sheet1!H7="","",LOG(B7)) -> 1.462397998 | F7: Expo | J7: =IF(A7="","",($F$3*A7+$H$3)-B7) -> 18.11029412 | K7: =IF(A7="","",J7^2) -> 327.982753 | M7: =IF(A7="","",$F$10*$H$10^A7) -> 21.19855614 | N7: =IF(A7="","",(M7-B7)) -> -7.801443858 | O7: =IF(A7="","",N7^2) -> 60.86252627 | Q7: =IF(A7="","",$F$17*A7^$H$17) -> 35.7613997 | R7: =IF(A7="","",Q7-B7) -> 6.7613997 | S7: =IF(A7="","",R7^2) -> 45.71652591
A8: =IF(Sheet1!G8="","",Sheet1!G8) -> 7 | B8: =IF(Sheet1!H8="","",Sheet1!H8) -> 39 | C8: =IF(Sheet1!G8="","",LOG(A8)) -> 0.84509804 | D8: =IF(Sheet1!H8="","",LOG(B8)) -> 1.591064607 | E8: A= | F8: =SLOPE(D1:D31,A1:A31) -> 0.1311068284 | G8: B= | H8: =INTERCEPT(D2:D31,A2:A31) -> 0.5396653115 | J8: 26.04117647 | K8: 678.142872 | M8: =IF(A8="","",$F$10*$H$10^A8) -> 28.66903732 | N8: =IF(A8="","",(M8-B8)) -> -10.33096268 | O8: =IF(A8="","",N8^2) -> 106.7287899 | Q8: =IF(A8="","",$F$17*A8^$H$17) -> 47.56831728 | R8: =IF(A8="","",Q8-B8) -> 8.568317278 | S8: =IF(A8="","",R8^2) -> 73.41606098
A9: =IF(Sheet1!G9="","",Sheet1!G9) -> 8 | B9: =IF(Sheet1!H9="","",Sheet1!H9) -> 52 | C9: =IF(Sheet1!G9="","",LOG(A9)) -> 0.903089987 | D9: =IF(Sheet1!H9="","",LOG(B9)) -> 1.716003344 | E9: In y = a*b^x | J9: 30.97205882 | K9: 959.2684278 | M9: 38.77215483 | N9: -13.22784517 | O9: 174.9758878 | Q9: 60.90426291 | R9: 8.904262914 | S9: 79.28589804
A10: =IF(Sheet1!G10="","",Sheet1!G10) -> 9 | B10: =IF(Sheet1!H10="","",Sheet1!H10) -> 67 | C10: =IF(Sheet1!G10="","",LOG(A10)) -> 0.9542425094 | D10: =IF(Sheet1!H10="","",LOG(B10)) -> 1.826074803 | E10: a= | F10: =10^H8 -> 3.464697411 | G10: b= | H10: =10^F8 -> 1.352405189 | J10: 33.90294118 | K10: 1149.40942 | M10: 52.43566337 | N10: -14.56433663 | O10: 212.1199014 | Q10: 75.73896664 | R10: 8.73896664 | S10: 76.36953794
A11: =IF(Sheet1!G11="","",Sheet1!G11) -> 10 | B11: =IF(Sheet1!H11="","",Sheet1!H11) -> 88 | C11: =IF(Sheet1!G11="","",LOG(A11)) -> 1 | D11: =IF(Sheet1!H11="","",LOG(B11)) -> 1.944482672 | J11: 30.83382353 | K11: 950.7246734 | M11: 70.91426322 | N11: -17.08573678 | O11: 291.9224013 | Q11: 92.04624631 | R11: 4.046246306 | S11: 16.37210917
A12: =IF(Sheet1!G12="","",Sheet1!G12) -> 11 | B12: =IF(Sheet1!H12="","",Sheet1!H12) -> 107 | C12: =IF(Sheet1!G12="","",LOG(A12)) -> 1.041392685 | D12: =IF(Sheet1!H12="","",LOG(B12)) -> 2.029383778 | J12: 29.76470588 | K12: 885.9377163 | M12: 95.90481754 | N12: -11.09518246 | O12: 123.1030739 | Q12: 109.8030813 | R12: 2.803081299 | S12: 7.857264767
A13: =IF(Sheet1!G13="","",Sheet1!G13) -> 12 | B13: =IF(Sheet1!H13="","",Sheet1!H13) -> 133 | C13: =IF(Sheet1!G13="","",LOG(A13)) -> 1.079181246 | D13: =IF(Sheet1!H13="","",LOG(B13)) -> 2.123851641 | J13: 21.69558824 | K13: 470.6985489 | M13: 129.7021729 | N13: -3.297827134 | O13: 10.8756638 | Q13: 128.9889651 | R13: -4.011034923 | S13: 16.08840115
A14: =IF(Sheet1!G14="","",Sheet1!G14) -> 13 | B14: =IF(Sheet1!H14="","",Sheet1!H14) -> 177 | C14: =IF(Sheet1!G14="","",LOG(A14)) -> 1.113943352 | D14: =IF(Sheet1!H14="","",LOG(B14)) -> 2.247973266 | F14: Power | J14: -4.373529412 | K14: 19.12775952 | M14: 175.4098916 | N14: -1.590108421 | O14: 2.528444789 | Q14: 149.5854354 | R14: -27.41456457 | S14: 751.5583508
A15: =IF(Sheet1!G15="","",Sheet1!G15) -> 14 | B15: =IF(Sheet1!H15="","",Sheet1!H15) -> 218 | C15: =IF(Sheet1!G15="","",LOG(A15)) -> 1.146128036 | D15: =IF(Sheet1!H15="","",LOG(B15)) -> 2.338456494 | E15: A= | F15: =SLOPE(D2:D31,C2:C31) -> 1.85077254 | G15: B= | H15: =INTERCEPT(D2:D31,C2:C31) -> 0.1132335429 | J15: -27.44264706 | K15: 753.0988776 | M15: 237.2252475 | N15: 19.22524753 | O15: 369.6101427 | Q15: 171.5757232 | R15: -46.4242768 | S15: 2155.213477
A16: =IF(Sheet1!G16="","",Sheet1!G16) -> 15 | B16: =IF(Sheet1!H16="","",Sheet1!H16) -> 245 | C16: =IF(Sheet1!G16="","",LOG(A16)) -> 1.176091259 | D16: =IF(Sheet1!H16="","",LOG(B16)) -> 2.389166084 | E16: In y = a * x^b | J16: -36.51176471 | K16: 1333.108962 | M16: 320.8246557 | N16: 75.82465567 | O16: 5749.378408 | Q16: 194.9444831 | R16: -50.05551693 | S16: 2505.554775
A17: =IF(Sheet1!G17="","",Sheet1!G17) -> 16 | B17: =IF(Sheet1!H17="","",Sheet1!H17) -> 266 | C17: =IF(Sheet1!G17="","",LOG(A17)) -> 1.204119983 | D17: =IF(Sheet1!H17="","",LOG(B17)) -> 2.424881637 | E17: a = | F17: =10^H15 -> 1.29787702 | G17: b = | H17: =F15 -> 1.85077254 | J17: -39.58088235 | K17: 1566.646248 | M17: 433.884929 | N17: 167.884929 | O17: 28185.34939 | Q17: 219.6775828 | R17: -46.32241725 | S17: 2145.76634
A18: =IF(Sheet1!G18="","",Sheet1!G18) ->  | B18: =IF(Sheet1!H18="","",Sheet1!H18) ->  | C18: =IF(Sheet1!G18="","",LOG(A18)) ->  | D18: =IF(Sheet1!H18="","",LOG(B18)) -> 
A19: =IF(Sheet1!G19="","",Sheet1!G19) ->  | B19: =IF(Sheet1!H19="","",Sheet1!H19) ->  | C19: =IF(Sheet1!G19="","",LOG(A19)) ->  | D19: =IF(Sheet1!H19="","",LOG(B19)) -> 
A20: =IF(Sheet1!G20="","",Sheet1!G20) ->  | B20: =IF(Sheet1!H20="","",Sheet1!H20) ->  | C20: =IF(Sheet1!G20="","",LOG(A20)) ->  | D20: =IF(Sheet1!H20="","",LOG(B20)) -> 
A21: =IF(Sheet1!G21="","",Sheet1!G21) ->  | B21: =IF(Sheet1!H21="","",Sheet1!H21) ->  | C21: =IF(Sheet1!G21="","",LOG(A21)) ->  | D21: =IF(Sheet1!H21="","",LOG(B21)) -> 
A22: =IF(Sheet1!G22="","",Sheet1!G22) ->  | B22: =IF(Sheet1!H22="","",Sheet1!H22) ->  | C22: =IF(Sheet1!G22="","",LOG(A22)) ->  | D22: =IF(Sheet1!H22="","",LOG(B22)) -> 
A23: =IF(Sheet1!G23="","",Sheet1!G23) ->  | B23: =IF(Sheet1!H23="","",Sheet1!H23) ->  | C23: =IF(Sheet1!G23="","",LOG(A23)) ->  | D23: =IF(Sheet1!H23="","",LOG(B23)) -> 
A24: =IF(Sheet1!G24="","",Sheet1!G24) ->  | B24: =IF(Sheet1!H24="","",Sheet1!H24) ->  | C24: =IF(Sheet1!G24="","",LOG(A24)) ->  | D24: =IF(Sheet1!H24="","",LOG(B24)) -> 
A25: =IF(Sheet1!G25="","",Sheet1!G25) ->  | B25: =IF(Sheet1!H25="","",Sheet1!H25) ->  | C25: =IF(Sheet1!G25="","",LOG(A25)) ->  | D25: =IF(Sheet1!H25="","",LOG(B25)) -> 
A26: =IF(Sheet1!G26="","",Sheet1!G26) ->  | B26: =IF(Sheet1!H26="","",Sheet1!H26) ->  | C26: =IF(Sheet1!G26="","",LOG(A26)) ->  | D26: =IF(Sheet1!H26="","",LOG(B26)) -> 
A27: =IF(Sheet1!G27="","",Sheet1!G27) ->  | B27: =IF(Sheet1!H27="","",Sheet1!H27) ->  | C27: =IF(Sheet1!G27="","",LOG(A27)) ->  | D27: =IF(Sheet1!H27="","",LOG(B27)) -> 
A28: =IF(Sheet1!G28="","",Sheet1!G28) ->  | B28: =IF(Sheet1!H28="","",Sheet1!H28) ->  | C28: =IF(Sheet1!G28="","",LOG(A28)) ->  | D28: =IF(Sheet1!H28="","",LOG(B28)) -> 
A29: =IF(Sheet1!G29="","",Sheet1!G29) ->  | B29: =IF(Sheet1!H29="","",Sheet1!H29) ->  | C29: =IF(Sheet1!G29="","",LOG(A29)) ->  | D29: =IF(Sheet1!H29="","",LOG(B29)) -> 
A30: =IF(Sheet1!G30="","",Sheet1!G30) ->  | B30: =IF(Sheet1!H30="","",Sheet1!H30) ->  | C30: =IF(Sheet1!G30="","",LOG(A30)) ->  | D30: =IF(Sheet1!H30="","",LOG(B30)) -> 
A31: =IF(Sheet1!G31="","",Sheet1!G31) ->  | B31: =IF(Sheet1!H31="","",Sheet1!H31) ->  | C31: =IF(Sheet1!G31="","",LOG(A31)) ->  | D31: =IF(Sheet1!H31="","",LOG(B31)) ->  | N31: =IF(A31="","",(M31-C31)) -> 
J32: Sum = | K32: =SUM(K2:K31) -> 12245.31324 | N32: Sum = | O32: =SUM(O2:O31) -> 35330.94553 | R32: Sum = | S32: =SUM(S2:S31) -> 7906.207892
K50: Correlation coefficient
K51: r = | L51: 0.9886292579

Sheet Sheet3
